fUST/lending_fUST_20240115
["ID","MTS","AMOUNT","RATE_DAILY","PERIOD"]
[311649652,1705281039828,-500.0,0.00027397,2]
[311649653,1705281039837,-681.17,0.00027397,2]
[311649654,1705281039846,-500.0,0.00027397,2]
[311649655,1705281039854,-500.0,0.00027397,2]
[311649656,1705281039863,-500.0,0.00027397,2]
[311649658,1705281039873,-500.0,0.00027397,2]
[311649661,1705281039882,-500.0,0.00027397,2]
[311649664,1705281039891,-500.0,0.00027397,2]
[311649666,1705281039900,-500.0,0.00027397,2]
[311649667,1705281039909,-527.81872152,0.00027397,2]
[311649670,1705281039919,-500.0,0.00027397,2]
[311649672,1705281039929,-500.0,0.00027397,2]
[311649674,1705281039938,-336.65608746,0.00027397,2]
[311649677,1705281039948,-427.50462992,0.00027397,2]
[311649680,1705281039957,-500.0,0.00027397,2]
[311649683,1705281039967,-500.0,0.00027397,2]
[311649686,1705281039977,-506.8572877,0.00027397,2]
[311649688,1705281039986,-500.0,0.00027397,2]
[311649690,1705281039996,-500.0,0.00027397,2]
[311649692,1705281040005,-500.0,0.00027397,2]
[311649695,1705281040014,-500.0,0.00027397,2]
[311649696,1705281040024,-792.25,0.00027397,2]
[311649698,1705281040033,-500.0,0.00027397,2]
[311649700,1705281040042,-500.0,0.00027397,2]
[311649703,1705281040052,-500.0,0.00027397,2]
[311649705,1705281040061,-500.0,0.00027397,2]
[311649707,1705281040071,-500.0,0.00027397,2]
[311649708,1705281040080,-500.0,0.00027397,2]
[311649711,1705281040090,-500.0,0.00027397,2]
[311649712,1705281040099,-500.0,0.00027397,2]
[311649714,1705281040108,-500.0,0.00027397,2]
[311649717,1705281040118,-500.0,0.00027397,2]
[311649718,1705281040127,-500.0,0.00027397,2]
[311649720,1705281040136,-508.37912011,0.00027397,2]
[311649722,1705281040146,-500.0,0.00027397,2]
[311649724,1705281040155,-500.0,0.00027397,2]
[311649726,1705281040165,-500.0,0.00027397,2]
[311649728,1705281040174,-504.4552916,0.00027397,2]
[311649730,1705281040184,-683.68,0.00027397,2]
[311649732,1705281040193,-500.0,0.00027397,2]
[311649734,1705281040202,-500.0,0.00027397,2]
[311649736,1705281040211,-500.0,0.00027397,2]
[311649738,1705281040220,-500.0,0.00027397,2]
[311649740,1705281040230,-500.0,0.00027397,2]
[311649742,1705281040239,-500.0,0.00027397,2]
[311649744,1705281040249,-519.99430236,0.00027397,2]
[311649746,1705281040258,-500.0,0.00027397,2]
[311649748,1705281040268,-500.0,0.00027397,2]
[311649750,1705281040277,-502.03303531,0.00027397,2]
[311649752,1705281040287,-500.0,0.00027397,2]
[311649754,1705281040296,-500.0,0.00027397,2]
[311649756,1705281040306,-1205.42,0.00027397,2]
[311649758,1705281040315,-500.0,0.00027397,2]
[311649760,1705281040324,-500.0,0.00027397,2]
[311649762,1705281040334,-500.0,0.00027397,2]
[311649764,1705281040343,-500.0,0.00027397,2]
[311649766,1705281040353,-500.0,0.00027397,2]
[311649768,1705281040362,-500.0,0.00027397,2]
[311649770,1705281040372,-197.21554855,0.00027397,2]
[311649772,1705281040381,-500.0,0.00027397,2]
[311649774,1705281040391,-500.0,0.00027397,2]
[311649776,1705281040400,-500.0,0.00027397,2]
[311649778,1705281040410,-500.0,0.00027397,2]
[311649780,1705281040419,-500.0,0.00027397,2]
[311649782,1705281040428,-500.0,0.00027397,2]
[311649784,1705281040438,-500.0,0.00027397,2]
[311649794,1705281040524,-500.0,0.00027397,2]
[311649796,1705281040533,-500.0,0.00027397,2]
[311649798,1705281040543,-655.22,0.00027397,2]
[311649800,1705281040553,-655.22,0.00027397,2]
[311649802,1705281040562,-655.22,0.00027397,2]
[311649804,1705281040572,-655.22,0.00027397,2]
[311649806,1705281040582,-200.29082634,0.00027397,2]
[311649808,1705281040592,-155.0,0.00027397,2]
[311649810,1705281040602,-500.0,0.00027397,2]
[311649812,1705281040611,-187.83149866,0.00027397,2]
[311649814,1705281040620,-224.37689626,0.00027397,2]
[311649816,1705281040630,-500.0,0.00027397,2]
[311649818,1705281040639,-500.0,0.00027397,2]
[311649820,1705281040650,-500.0,0.00027397,2]
[311649822,1705281040659,-500.0,0.00027397,2]
[311649824,1705281040669,-500.0,0.00027397,2]
[311649826,1705281040678,-500.0,0.00027397,2]
[311649828,1705281040687,-500.0,0.00027397,2]
[311649830,1705281040696,-500.0,0.00027397,2]
[311649832,1705281040706,-500.0,0.00027397,2]
[311649834,1705281040715,-500.0,0.00027397,5]
[311649836,1705281040724,-493.90003531,0.00027397,2]
[311649838,1705281040734,-500.0,0.00027397,2]
[311649840,1705281040743,-500.0,0.00027397,2]
[311649842,1705281040752,-500.0,0.00027397,2]
[311649844,1705281040762,-500.0,0.00027397,2]
[311649846,1705281040771,-498.36168387,0.00027397,2]
[311649848,1705281040780,-500.0,0.00027397,2]
[311649850,1705281040790,-514.16186221,0.00027397,2]
[311649852,1705281040799,-500.0,0.00027397,2]
[311649853,1705281040809,-500.0,0.00027397,2]
[311649856,1705281040818,-252.07540948,0.00027397,2]
[311649858,1705281040828,-500.0,0.00027397,2]
[311649859,1705281040837,-500.0,0.00027397,2]
[311649861,1705281040847,-500.0,0.00027397,2]
[311649863,1705281040856,-500.0,0.00027397,2]
[311649865,1705281040866,-1000.0,0.00027397,2]
[311649867,1705281040875,-500.0,0.00027397,2]
[311649870,1705281040886,-459.03268725,0.00027397,2]
[311649872,1705281040896,-1267.62,0.00027397,2]
[311649873,1705281040906,-643.12,0.00027397,2]
[311649875,1705281040916,-500.0,0.00027397,2]
[311649877,1705281040925,-500.0,0.00027397,2]
[311649880,1705281040938,-2876.52,0.00027397,2]
[311649882,1705281040948,-500.0,0.00027397,2]
[311649884,1705281040958,-2746.06,0.00027397,2]
[311649886,1705281040968,-500.0,0.00027397,2]
[311649887,1705281040978,-500.0,0.00027397,2]
[311649889,1705281040987,-720.48,0.00027397,2]
[311649891,1705281040997,-500.0,0.00027397,2]
[311649893,1705281041007,-1305.35,0.00027397,2]
[311649895,1705281041017,-500.0,0.00027397,2]
[311649897,1705281041028,-998.27,0.00027397,2]
[311649899,1705281041038,-500.0,0.00027397,2]
[311649901,1705281041048,-500.0,0.00027397,2]
[311649903,1705281041058,-502.64855068,0.00027397,2]
[311649906,1705281041073,-500.0,0.00027397,2]
[311649908,1705281041083,-500.0,0.00027397,2]
[311649910,1705281041094,-500.0,0.00027397,2]
[311649911,1705281041103,-500.0,0.00027397,2]
[311649913,1705281041114,-500.0,0.00027397,2]
[311649915,1705281041124,-500.0,0.00027397,2]
[311649918,1705281041134,-500.0,0.00027397,2]
[311649920,1705281041144,-601.55700374,0.00027397,2]
[311649921,1705281041153,-500.0,0.00027397,2]
[311649923,1705281041162,-500.0,0.00027397,2]
[311649925,1705281041172,-500.0,0.00027397,2]
[311649927,1705281041183,-500.0,0.00027397,2]
[311649929,1705281041193,-500.0,0.00027397,2]
[311649931,1705281041203,-500.0,0.00027397,2]
[311649933,1705281041213,-500.0,0.00027397,2]
[311649935,1705281041222,-500.0,0.00027397,2]
[311649937,1705281041232,-1274.74,0.00027397,2]
[311649939,1705281041241,-961.69,0.00027397,2]
[311649941,1705281041250,-555.00352691,0.00027397,2]
[311649943,1705281041260,-500.0,0.00027397,2]
[311649945,1705281041269,-500.0,0.00027397,2]
[311649947,1705281041280,-500.0,0.00027397,2]
[311649949,1705281041289,-1695.42,0.00027397,2]
[311649951,1705281041299,-500.0,0.00027397,2]
[311649953,1705281041309,-500.0,0.00027397,2]
[311649955,1705281041318,-1482.79,0.00027397,2]
[311649957,1705281041328,-500.0,0.00027397,2]
[311649959,1705281041337,-500.0,0.00027397,2]
[311649961,1705281041346,-500.0,0.00027397,2]
[311649963,1705281041355,-500.0,0.00027397,2]
[311649965,1705281041365,-500.0,0.00027397,2]
[311649967,1705281041375,-500.0,0.00027397,2]
[311649969,1705281041385,-6992.1,0.00027397,2]
[311649971,1705281041394,-500.0,0.00027397,2]
[311649973,1705281041403,-500.0,0.00027397,2]
[311649975,1705281041412,-500.0,0.00027397,2]
[311649977,1705281041421,-544.83777712,0.00027397,2]
[311649979,1705281041431,-500.0,0.00027397,2]
[311649981,1705281041441,-500.0,0.00027397,2]
[311649983,1705281041453,-500.0,0.00027397,2]
[311649985,1705281041464,-500.0,0.00027397,2]
[311649987,1705281041474,-8044.07,0.00027397,2]
[311649989,1705281041484,-2794.15,0.00027397,2]
[311649991,1705281041494,-500.0,0.00027397,2]
[311649993,1705281041503,-500.0,0.00027397,2]
[311649995,1705281041513,-783.67,0.00027397,2]
[311649997,1705281041524,-641.07234229,0.00027397,2]
[311649999,1705281041534,-500.0,0.00027397,2]
[311650001,1705281041543,-500.0,0.00027397,2]
[311650002,1705281041553,-348.3818456,0.00027397,2]
[311650005,1705281041563,-500.0,0.00027397,2]
[311650006,1705281041574,-4514.24,0.00027397,2]
[311650008,1705281041584,-868.05,0.00027397,2]
[311650010,1705281041593,-3852.53,0.00027397,2]
[311650012,1705281041603,-500.0,0.00027397,2]
[311650015,1705281041613,-500.0,0.00027397,2]
[311650016,1705281041623,-500.0,0.00027397,2]
[311650019,1705281041633,-500.0,0.00027397,2]
[311650021,1705281041644,-500.0,0.00027397,2]
[311650023,1705281041654,-500.0,0.00027397,2]
[311650024,1705281041664,-500.0,0.00027397,2]
[311650026,1705281041674,-500.0,0.00027397,2]
[311650029,1705281041688,-24408.73,0.00027397,2]
[311650030,1705281041698,-15055.16,0.00027397,2]
[311650032,1705281041707,-500.0,0.00027397,2]
[311650034,1705281041718,-500.0,0.00027397,2]
[311650037,1705281041728,-646.54670166,0.00027397,2]
[311650039,1705281041738,-500.0,0.00027397,2]
[311650040,1705281041747,-500.0,0.00027397,2]
[311650042,1705281041758,-500.0,0.00027397,2]
[311650044,1705281041769,-500.0,0.00027397,2]
[311650047,1705281041779,-500.0,0.00027397,2]
[311650048,1705281041789,-500.0,0.00027397,2]
[311650051,1705281041799,-500.0,0.00027397,2]
[311650053,1705281041810,-500.0,0.00027397,2]
[311650054,1705281041820,-204.61135304,0.00027397,2]
[311650056,1705281041831,-500.0,0.00027397,2]
[311650059,1705281041842,-500.0,0.00027397,2]
[311650061,1705281041852,-500.0,0.00027397,2]
[311650062,1705281041862,-500.68191644,0.00027397,2]
[311650065,1705281041874,-500.0,0.00027397,2]
[311650066,1705281041883,-500.0,0.00027397,2]
[311650068,1705281041893,-500.0,0.00027397,2]
[311650070,1705281041904,-500.0,0.00027397,2]
[311650073,1705281041914,-500.0,0.00027397,2]
[311650074,1705281041924,-500.0,0.00027397,2]
[311650076,1705281041935,-500.0,0.00027397,2]
[311650078,1705281041946,-202.2453661,0.00027397,2]
[311650081,1705281041955,-500.0,0.00027397,2]
[311650082,1705281041965,-500.0,0.00027397,2]
[311650084,1705281041974,-500.0,0.00027397,2]
[311650086,1705281041984,-500.0,0.00027397,2]
[311650088,1705281041995,-523.53850014,0.00027397,2]
[311650090,1705281042004,-1871.2,0.00027397,2]
[311650092,1705281042016,-500.0,0.00027397,2]
[311650094,1705281042026,-500.0,0.00027397,2]
[311650097,1705281042036,-500.0,0.00027397,2]
[311650098,1705281042045,-479.04825601,0.00027397,2]
[311650100,1705281042056,-1623.89718729,0.00027397,2]
[311650102,1705281042065,-500.0,0.00027397,2]
[311650104,1705281042076,-719.5,0.00027397,2]
[311650106,1705281042086,-500.0,0.00027397,2]
[311650108,1705281042095,-500.0,0.00027397,2]
[311650110,1705281042106,-500.0,0.00027397,2]
[311650112,1705281042116,-500.01851534,0.00027397,2]
[311650114,1705281042126,-500.0,0.00027397,2]
[311650116,1705281042135,-500.0,0.00027397,2]
[311650118,1705281042144,-500.0,0.00027397,2]
[311650120,1705281042153,-500.0,0.00027397,2]
[311650122,1705281042162,-500.0,0.00027397,2]
[311650124,1705281042171,-500.0,0.00027397,2]
[311650126,1705281042181,-500.0,0.00027397,2]
[311650128,1705281042190,-383.11577033,0.00027397,2]
[311650130,1705281042199,-500.0,0.00027397,2]
[311650132,1705281042208,-500.0,0.00027397,2]
[311650134,1705281042218,-500.92388301,0.00027397,2]
[311650136,1705281042229,-6493.17,0.00027397,2]
[311650138,1705281042238,-500.0,0.00027397,2]
[311650140,1705281042247,-500.0,0.00027397,2]
[311650142,1705281042257,-500.0,0.00027397,2]
[311650144,1705281042266,-500.0,0.00027397,2]
[311650146,1705281042275,-655.30601003,0.00027397,2]
[311650148,1705281042284,-154.5972832,0.00027397,2]
[311650150,1705281042293,-153.0,0.00027397,2]
[311650152,1705281042302,-153.0,0.00027397,2]
[311650154,1705281042312,-153.0,0.00027397,2]
[311650156,1705281042321,-6475.34296448,0.000274,2]
[311650158,1705281042330,-627.63212024,0.00027415,2]
[311650160,1705281042339,-500.0,0.00027534,2]
[311650162,1705281042349,-2030.72904445,0.00027569,2]
[311650164,1705281042358,-15885.90268571,0.00027569,2]
[311650166,1705281042367,-1737.77333853,0.00027569,2]
[311650168,1705281042376,-20839.23710501,0.00027569,2]
[311650171,1705281042386,-309.70282191,0.00027569,2]
[311650174,1705281042395,-162.84977266,0.00027569,2]
[311650176,1705281042404,-191.07662918,0.00027569,2]
[311650179,1705281042414,-271.92490865,0.00027569,2]
[311650182,1705281042422,-1579.25587195,0.00027569,2]
[311650184,1705281042433,-246.15296593,0.0002757,2]
[311650187,1705281042442,-36900.70444977,0.0002757,2]
[311650189,1705281042453,-471.5075995,0.0002757,4]
[311650191,1705281042463,-500.0,0.0002757,4]
[311650194,1705281042473,-500.0,0.0002757,4]
[311650198,1705281042483,-492.38358498,0.0002757,4]
[311650200,1705281042493,-368.79724099,0.0002757,4]
[311650202,1705281042503,-161.23389574,0.0002757,4]
[311650205,1705281042512,-500.0,0.0002757,4]
[311650221,1705281042597,-8394.59999999,0.00027571,2]
[311650223,1705281042606,-261.12680454,0.00027571,2]
[311650225,1705281042616,-3316.01553422,0.00027571,2]
[311650227,1705281042625,-18925.90790467,0.00027571,7]
[311650229,1705281042634,-161.07874834,0.00027571,2]
[311650231,1705281042643,-500.0,0.00027665,2]
[311650233,1705281042651,-551.35486565,0.0002767,14]
[311650235,1705281042661,-655.22,0.0002767,2]
[311650237,1705281042670,-655.22,0.0002767,2]
[311650239,1705281042679,-655.22,0.0002767,2]
[311650241,1705281042689,-500.0,0.0002767,2]
[311650243,1705281042698,-521.2196797,0.0002767,2]
[311650245,1705281042708,-215.600695,0.00027671,2]
[311650247,1705281042717,-2430.37307,0.00027671,2]
[311650249,1705281042726,-2430.37307,0.00027671,2]
[311650251,1705281042735,-151.0,0.00027671,2]
[311650253,1705281042744,-500.0,0.00027671,2]
[311650255,1705281042753,-500.0,0.00027671,2]
[311650257,1705281042762,-732.09,0.00027671,2]
[311650258,1705281042771,-500.0,0.00027671,2]
[311650260,1705281042781,-500.0,0.00027671,2]
[311650263,1705281042791,-500.0,0.00027671,2]
[311650264,1705281042800,-500.0,0.00027671,2]
[311650266,1705281042809,-500.0,0.00027671,2]
[311650269,1705281042819,-500.0,0.00027671,2]
[311650271,1705281042828,-505.32,0.00027671,2]
[311650273,1705281042838,-500.0,0.00027671,2]
[311650274,1705281042847,-500.0,0.00027671,2]
[311650276,1705281042856,-500.0,0.00027671,2]
[311650278,1705281042866,-532.87,0.00027671,2]
[311650280,1705281042875,-500.0,0.00027671,2]
[311650282,1705281042885,-500.0,0.00027671,2]
[311650284,1705281042894,-500.0,0.00027671,2]
[311650286,1705281042904,-500.0,0.00027671,2]
[311650289,1705281042913,-500.0,0.00027671,2]
[311650290,1705281042922,-500.0,0.00027671,2]
[311650292,1705281042933,-500.0,0.00027671,2]
[311650295,1705281042943,-500.0,0.00027671,2]
[311650296,1705281042953,-500.0,0.00027671,2]
[311650298,1705281042962,-500.0,0.00027671,2]
[311650301,1705281042971,-252.49581214,0.00027671,2]
[311650302,1705281042980,-500.0,0.00027671,2]
[311650304,1705281042989,-500.0,0.00027671,2]
[311650306,1705281042998,-500.0,0.00027671,2]
[311650308,1705281043007,-500.0,0.00027671,2]
[311650310,1705281043017,-500.0,0.00027671,2]
[311650312,1705281043026,-500.0,0.00027671,2]
[311650315,1705281043035,-500.0,0.00027671,2]
[311650316,1705281043045,-1158.57,0.00027671,2]
[311650318,1705281043054,-500.0,0.00027671,2]
[311650321,1705281043063,-500.0,0.00027671,2]
[311650323,1705281043073,-500.0,0.00027671,2]
[311650325,1705281043082,-2184.44,0.00027671,2]
[311650327,1705281043091,-500.0,0.00027671,2]
[311650328,1705281043101,-500.0,0.00027671,2]
[311650330,1705281043111,-1000.0,0.00027671,2]
[311650332,1705281043120,-500.0,0.00027671,2]
[311650333,1705281043129,-500.0,0.00027671,2]
[311650334,1705281043138,-500.0,0.00027671,2]
[311650335,1705281043147,-500.0,0.00027671,2]
[311650336,1705281043156,-500.0,0.00027671,2]
[311650337,1705281043165,-215.85448759,0.00027671,2]
[311650338,1705281043175,-500.0,0.00027671,2]
[311650339,1705281043185,-1358.21,0.00027671,2]
[311650340,1705281043194,-500.94968003,0.00027671,2]
[311650341,1705281043204,-500.0,0.00027671,2]
[311650342,1705281043213,-500.0,0.00027671,2]
[311650343,1705281043222,-500.0,0.00027671,2]
[311650344,1705281043236,-500.0,0.00027671,2]
[311650345,1705281043245,-472.51850201,0.00027671,2]
[311650346,1705281043254,-500.0,0.00027671,2]
[311650347,1705281043264,-1606.58,0.00027671,2]
[311650348,1705281043273,-500.0,0.00027671,2]
[311650349,1705281043282,-500.0,0.00027671,2]
[311650350,1705281043291,-626.85,0.00027671,2]
[311650351,1705281043300,-500.0,0.00027671,2]
[311650352,1705281043309,-500.0,0.00027671,2]
[311650353,1705281043318,-500.0,0.00027671,2]
[311650354,1705281043328,-500.0,0.00027671,2]
[311650355,1705281043336,-500.0,0.00027671,2]
[311650356,1705281043345,-500.0,0.00027671,2]
[311650357,1705281043355,-502.84066308,0.00027671,2]
[311650358,1705281043364,-972.6,0.00027671,2]
[311650359,1705281043374,-521.55046774,0.00027671,2]
[311650360,1705281043383,-500.0,0.00027671,2]
[311650361,1705281043393,-500.0,0.00027671,2]
[311650362,1705281043402,-500.0,0.00027671,2]
[311650363,1705281043411,-500.0,0.00027671,2]
[311650364,1705281043421,-500.0,0.00027671,2]
[311650365,1705281043432,-248.67799791,0.00027671,2]
[311650366,1705281043442,-500.0,0.00027671,2]
[311650367,1705281043454,-500.0,0.00027671,2]
[311650368,1705281043463,-807.89,0.00027671,2]
[311650369,1705281043472,-500.0,0.00027671,2]
[311650370,1705281043481,-500.0,0.00027671,2]
[311650371,1705281043490,-1139.15,0.00027671,2]
[311650372,1705281043502,-500.0,0.00027671,2]
[311650373,1705281043511,-500.0,0.00027671,2]
[311650374,1705281043521,-628.49457339,0.00027671,2]
[311650375,1705281043532,-505.11,0.00027671,2]
[311650376,1705281043541,-500.0,0.00027671,2]
[311650377,1705281043550,-500.0,0.00027671,2]
[311650378,1705281043560,-681.17,0.00027671,2]
[311650379,1705281043568,-500.0,0.00027671,2]
[311650380,1705281043578,-500.0,0.00027671,2]
[311650381,1705281043587,-500.0,0.00027671,2]
[311650382,1705281043596,-500.0,0.00027671,2]
[311650383,1705281043605,-500.0,0.00027671,2]
[311650384,1705281043615,-500.0,0.00027671,2]
[311650385,1705281043624,-500.0,0.00027671,2]
[311650386,1705281043633,-500.0,0.00027671,2]
[311650387,1705281043643,-500.0,0.00027671,2]
[311650388,1705281043652,-500.0,0.00027671,2]
[311650390,1705281043661,-502.42959231,0.00027671,2]
[311650392,1705281043671,-500.0,0.00027671,2]
[311650394,1705281043679,-500.0,0.00027671,2]
[311650396,1705281043691,-500.0,0.00027671,2]
[311650397,1705281043700,-792.25,0.00027671,2]
[311650399,1705281043709,-500.0,0.00027671,2]
[311650401,1705281043718,-500.0,0.00027671,2]
[311650402,1705281043728,-500.0,0.00027671,2]
[311650404,1705281043737,-500.0,0.00027671,2]
[311650405,1705281043746,-600.42425379,0.00027671,2]
[311650406,1705281043755,-500.0,0.00027671,2]
[311650407,1705281043764,-500.0,0.00027671,2]
[311650408,1705281043773,-500.0,0.00027671,2]
[311650409,1705281043782,-500.0,0.00027671,2]
[311650410,1705281043791,-500.0,0.00027671,2]
[311650411,1705281043801,-500.0,0.00027671,2]
[311650412,1705281043811,-683.68,0.00027671,2]
[311650413,1705281043819,-500.0,0.00027671,2]
[311650414,1705281043828,-500.0,0.00027671,2]
[311650415,1705281043837,-500.0,0.00027671,2]
[311650416,1705281043846,-500.0,0.00027671,2]
[311650417,1705281043855,-500.0,0.00027671,2]
[311650418,1705281043865,-500.0,0.00027671,2]
[311650419,1705281043874,-500.0,0.00027671,2]
[311650420,1705281043883,-1205.42,0.00027671,2]
[311650421,1705281043893,-500.0,0.00027671,2]
[311650422,1705281043901,-500.0,0.00027671,2]
[311650423,1705281043911,-500.0,0.00027671,2]
[311650424,1705281043920,-500.0,0.00027671,2]
[311650425,1705281043929,-500.0,0.00027671,2]
[311650426,1705281043939,-500.0,0.00027671,2]
[311650427,1705281043948,-500.0,0.00027671,2]
[311650428,1705281043957,-529.07208491,0.00027671,2]
[311650430,1705281043966,-500.0,0.00027671,2]
[311650431,1705281043975,-500.0,0.00027671,2]
[311650432,1705281043984,-500.0,0.00027671,2]
[311650433,1705281043993,-500.0,0.00027671,2]
[311650434,1705281044003,-500.0,0.00027671,2]
[311650435,1705281044012,-500.0,0.00027671,2]
[311650436,1705281044021,-531.88738807,0.00027671,2]
[311650437,1705281044030,-577.38270895,0.00027671,2]
[311650438,1705281044040,-420.22029763,0.00027671,2]
[311650439,1705281044049,-500.0,0.00027671,2]
[311650440,1705281044058,-500.0,0.00027671,2]
[311650441,1705281044067,-500.0,0.00027671,2]
[311650442,1705281044076,-500.0,0.00027671,2]
[311650443,1705281044085,-500.0,0.00027671,5]
[311650444,1705281044094,-500.0,0.00027671,2]
[311650445,1705281044103,-500.0,0.00027671,2]
[311650446,1705281044112,-517.88552703,0.00027671,2]
[311650447,1705281044121,-500.0,0.00027671,2]
[311650448,1705281044130,-500.0,0.00027671,2]
[311650449,1705281044139,-500.0,0.00027671,2]
[311650450,1705281044148,-500.0,0.00027671,2]
[311650451,1705281044158,-500.0,0.00027671,2]
[311650452,1705281044167,-500.0,0.00027671,2]
[311650453,1705281044177,-500.0,0.00027671,2]
[311650454,1705281044187,-500.0,0.00027671,2]
[311650455,1705281044196,-1000.0,0.00027671,2]
[311650456,1705281044206,-1267.62,0.00027671,2]
[311650457,1705281044215,-643.12,0.00027671,2]
[311650458,1705281044224,-500.0,0.00027671,2]
[311650459,1705281044234,-2876.52,0.00027671,2]
[311650460,1705281044243,-2746.06,0.00027671,2]
[311650461,1705281044253,-500.0,0.00027671,2]
[311650462,1705281044262,-500.0,0.00027671,2]
[311650463,1705281044271,-720.48,0.00027671,2]
[311650464,1705281044281,-500.0,0.00027671,2]
[311650465,1705281044291,-1305.35,0.00027671,2]
[311650466,1705281044300,-500.0,0.00027671,2]
[311650467,1705281044309,-998.27,0.00027671,2]
[311650468,1705281044319,-500.0,0.00027671,2]
[311650469,1705281044328,-500.0,0.00027671,2]
[311650470,1705281044340,-564.37200595,0.00027671,2]
[311650471,1705281044422,-500.0,0.00027671,2]
[311650472,1705281044434,-521.66517936,0.00027671,2]
[311650473,1705281044443,-500.0,0.00027671,2]
[311650474,1705281044454,-500.0,0.00027671,2]
[311650475,1705281044463,-501.52822313,0.00027671,2]
[311650476,1705281044472,-500.0,0.00027671,2]
[311650477,1705281044482,-500.0,0.00027671,2]
[311650478,1705281044492,-500.0,0.00027671,2]
[311650479,1705281044501,-500.0,0.00027671,2]
[311650480,1705281044511,-500.0,0.00027671,2]
[311650481,1705281044520,-500.0,0.00027671,2]
[311650482,1705281044530,-1274.74,0.00027671,2]
[311650483,1705281044540,-961.69,0.00027671,2]
[311650484,1705281044549,-500.0,0.00027671,2]
[311650485,1705281044558,-500.0,0.00027671,2]
[311650486,1705281044568,-616.08704125,0.00027671,2]
[311650487,1705281044577,-1695.42,0.00027671,2]
[311650488,1705281044587,-500.0,0.00027671,2]
[311650489,1705281044596,-500.0,0.00027671,2]
[311650490,1705281044605,-1482.79,0.00027671,2]
[311650491,1705281044615,-500.0,0.00027671,2]
[311650492,1705281044624,-500.0,0.00027671,2]
[311650494,1705281044632,-500.0,0.00027671,2]
[311650495,1705281044642,-500.0,0.00027671,2]
[311650497,1705281044651,-500.0,0.00027671,2]
[311650498,1705281044661,-509.48319526,0.00027671,2]
[311650500,1705281044670,-500.0,0.00027671,2]
[311650501,1705281044679,-6992.1,0.00027671,2]
[311650503,1705281044689,-500.0,0.00027671,2]
[311650505,1705281044698,-500.0,0.00027671,2]
[311650507,1705281044708,-500.0,0.00027671,2]
[311650508,1705281044717,-500.0,0.00027671,2]
[311650510,1705281044726,-8044.07,0.00027671,2]
[311650512,1705281044734,-2794.15,0.00027671,2]
[311650514,1705281044744,-500.0,0.00027671,2]
[311650515,1705281044753,-500.0,0.00027671,2]
[311650517,1705281044762,-783.67,0.00027671,2]
[311650518,1705281044772,-500.0,0.00027671,2]
[311650519,1705281044782,-423.05230909,0.00027671,2]
[311650520,1705281044791,-500.0,0.00027671,2]
[311650521,1705281044802,-4514.24,0.00027671,2]
[311650522,1705281044811,-868.05,0.00027671,2]
[311650523,1705281044820,-3852.53,0.00027671,2]
[311650524,1705281044829,-524.81382104,0.00027671,2]